[Event "Late-Titled-Tuesday-Blitz-June-04-2024"]
[Site "Chess.com"]
[Date "2024.06.04"]
[Round "1"]
[White "Rud_Makarian"]
[Black "jlf287"]
[Result "1-0"]
[WhiteElo "2982"]
[BlackElo "2506"]
[TimeControl "180+1"]
[EndTime "14:07:40 PDT"]
[Termination "Rud_Makarian won by resignation"]

1. c4 {[%clk 0:02:54]} 1... c6 {[%clk 0:02:57.7]} 2. Nf3 {[%clk 0:02:54]} 2...
d5 {[%clk 0:02:57.8]} 3. d4 {[%clk 0:02:54.9]} 3... Nf6 {[%clk 0:02:58]} 4. Nc3
{[%clk 0:02:55.1]} 4... e6 {[%clk 0:02:57.1]} 5. Bg5 {[%clk 0:02:54.9]} 5...
Nbd7 {[%clk 0:02:54.9]} 6. e3 {[%clk 0:02:54.8]} 6... Qa5 {[%clk 0:02:53.5]} 7.
Nd2 {[%clk 0:02:53.8]} 7... Bb4 {[%clk 0:02:45.5]} 8. Rc1 {[%clk 0:02:53.3]}
8... dxc4 {[%clk 0:02:38.5]} 9. Bxf6 {[%clk 0:02:52.9]} 9... Nxf6 {[%clk
0:02:39.4]} 10. Nxc4 {[%clk 0:02:47.8]} 10... Qc7 {[%clk 0:02:36.1]} 11. g3
{[%clk 0:02:43]} 11... O-O {[%clk 0:02:32.5]} 12. Bg2 {[%clk 0:02:43.5]} 12...
Rd8 {[%clk 0:02:27.4]} 13. O-O {[%clk 0:02:42.5]} 13... c5 {[%clk 0:02:25.2]}
14. Qb3 {[%clk 0:01:52.1]} 14... Bxc3 {[%clk 0:02:19.2]} 15. bxc3 {[%clk
0:01:47.4]} 15... Rb8 {[%clk 0:02:16.3]} 16. Rfd1 {[%clk 0:01:35.7]} 16... b6
{[%clk 0:02:16.5]} 17. dxc5 {[%clk 0:01:30.2]} 17... Ba6 {[%clk 0:01:35.5]} 18.
cxb6 {[%clk 0:01:16.2]} 18... axb6 {[%clk 0:01:34.6]} 19. Na3 {[%clk 0:01:09.9]}
19... Rxd1+ {[%clk 0:01:23.2]} 20. Rxd1 {[%clk 0:01:10.8]} 20... Rd8 {[%clk
0:01:23.4]} 21. h3 {[%clk 0:01:01.9]} 21... h6 {[%clk 0:01:19.6]} 22. Rd4 {[%clk
0:01:00.9]} 22... Rc8 {[%clk 0:01:19.2]} 23. Ra4 {[%clk 0:00:45.4]} 23... Bd3
{[%clk 0:01:10.5]} 24. c4 {[%clk 0:00:40.3]} 24... Be4 {[%clk 0:01:07.4]} 25.
Bf1 {[%clk 0:00:30.3]} 25... Bf3 {[%clk 0:01:01.3]} 26. Nb5 {[%clk 0:00:28.4]}
26... Qd8 {[%clk 0:00:57.2]} 27. Nd4 {[%clk 0:00:28.1]} 27... Ba8 {[%clk
0:00:45.4]} 28. Ra7 {[%clk 0:00:27.3]} 28... Ne4 {[%clk 0:00:38]} 29. Qb5 {[%clk
0:00:14.4]} 29... Nc5 {[%clk 0:00:38.3]} 30. Qb2 {[%clk 0:00:12.9]} 30... Bb7
{[%clk 0:00:34.1]} 31. Bg2 {[%clk 0:00:10.7]} 31... Ra8 {[%clk 0:00:21.4]} 32.
Rxb7 {[%clk 0:00:08.6]} 32... Nxb7 {[%clk 0:00:17.9]} 33. Bxb7 {[%clk
0:00:09.5]} 33... Ra7 {[%clk 0:00:15]} 34. Bf3 {[%clk 0:00:09.2]} 34... Rd7
{[%clk 0:00:12.9]} 35. Kg2 {[%clk 0:00:08.8]} 35... Rd6 {[%clk 0:00:09.9]} 36.
Qb4 {[%clk 0:00:08.1]} 36... Qb8 {[%clk 0:00:09.4]} 37. c5 {[%clk 0:00:07.8]}
37... Rd8 {[%clk 0:00:03.7]} 38. Nc6 {[%clk 0:00:04.2]} 1-0

[Event "Late-Titled-Tuesday-Blitz-June-04-2024"]
[Site "Chess.com"]
[Date "2024.06.04"]
[Round "1"]
[White "luca_va99"]
[Black "Bilan_Danila"]
[Result "0-1"]
[WhiteElo "2182"]
[BlackElo "2554"]
[TimeControl "180+1"]
[EndTime "14:07:40 PDT"]
[Termination "Bilan_Danila won by resignation"]

1. e4 {[%clk 0:02:59.9]} 1... c6 {[%clk 0:03:00.2]} 2. Ne2 {[%clk 0:02:58.9]}
2... d5 {[%clk 0:03:01.1]} 3. Nbc3 {[%clk 0:02:58.1]} 3... e5 {[%clk 0:02:59.4]}
4. exd5 {[%clk 0:02:58]} 4... cxd5 {[%clk 0:02:59.4]} 5. d4 {[%clk 0:02:58.7]}
5... e4 {[%clk 0:02:55.9]} 6. Bf4 {[%clk 0:02:53]} 6... Nf6 {[%clk 0:02:39.7]}
7. Nb5 {[%clk 0:02:42.5]} 7... Na6 {[%clk 0:02:36.7]} 8. c3 {[%clk 0:02:36.1]}
8... Be7 {[%clk 0:02:30.7]} 9. Na3 {[%clk 0:02:30.4]} 9... O-O {[%clk
0:02:25.3]} 10. Nc2 {[%clk 0:02:27.8]} 10... Nh5 {[%clk 0:02:19.4]} 11. Be5
{[%clk 0:02:22.6]} 11... f6 {[%clk 0:02:09.3]} 12. Bg3 {[%clk 0:02:22.5]} 12...
f5 {[%clk 0:02:09.2]} 13. Nf4 {[%clk 0:02:20.9]} 13... Nxf4 {[%clk 0:01:53.4]}
14. Bxf4 {[%clk 0:02:20.2]} 14... g5 {[%clk 0:01:54.3]} 15. Be5 {[%clk
0:02:19.6]} 15... Nb8 {[%clk 0:01:47]} 16. Bb5 {[%clk 0:02:09.3]} 16... Bd7
{[%clk 0:01:41.8]} 17. Qe2 {[%clk 0:01:45.7]} 17... a6 {[%clk 0:01:34.9]} 18.
Bxd7 {[%clk 0:01:43.3]} 18... Qxd7 {[%clk 0:01:35.5]} 19. h4 {[%clk 0:01:38.6]}
19... g4 {[%clk 0:01:23.7]} 20. Qd2 {[%clk 0:01:15.5]} 20... Qe6 {[%clk
0:01:12]} 21. O-O-O {[%clk 0:00:51.3]} 21... Nc6 {[%clk 0:01:11]} 22. Qf4 {[%clk
0:00:46.3]} 22... Nxe5 {[%clk 0:00:59.8]} 23. dxe5 {[%clk 0:00:46.1]} 23... Bc5
{[%clk 0:00:54.6]} 24. Nd4 {[%clk 0:00:38.8]} 24... Bxd4 {[%clk 0:00:48.2]} 25.
cxd4 {[%clk 0:00:39.4]} 25... Rac8+ {[%clk 0:00:46.5]} 26. Kb1 {[%clk
0:00:39.9]} 26... Rc6 {[%clk 0:00:45.5]} 27. Rc1 {[%clk 0:00:39.9]} 27... Rfc8
{[%clk 0:00:45.2]} 28. Rxc6 {[%clk 0:00:39.9]} 28... Qxc6 {[%clk 0:00:45.5]} 29.
Qd2 {[%clk 0:00:31.2]} 29... Kg7 {[%clk 0:00:30.1]} 30. Qg5+ {[%clk 0:00:29.6]}
30... Kh8 {[%clk 0:00:26.3]} 31. g3 {[%clk 0:00:18.3]} 31... h6 {[%clk
0:00:20.8]} 32. Qd2 {[%clk 0:00:12.1]} 32... Kg7 {[%clk 0:00:20.6]} 33. Rc1
{[%clk 0:00:12.6]} 33... Qd7 {[%clk 0:00:19.5]} 34. Rxc8 {[%clk 0:00:12.1]}
34... Qxc8 {[%clk 0:00:20.4]} 35. Qb4 {[%clk 0:00:09.2]} 35... Qc7 {[%clk
0:00:17.3]} 36. a4 {[%clk 0:00:06.7]} 36... a5 {[%clk 0:00:17.7]} 37. Qb5 {[%clk
0:00:04.7]} 37... Qf7 {[%clk 0:00:13.1]} 38. Ka2 {[%clk 0:00:05]} 38... f4
{[%clk 0:00:12.5]} 39. gxf4 {[%clk 0:00:04.7]} 39... Qxf4 {[%clk 0:00:12.7]} 40.
Qxb7+ {[%clk 0:00:04.9]} 40... Qf7 {[%clk 0:00:13.4]} 41. Qxd5 {[%clk
0:00:05.3]} 41... Qxd5+ {[%clk 0:00:12.6]} 42. b3 {[%clk 0:00:06]} 42... Qxd4
{[%clk 0:00:12.8]} 43. e6 {[%clk 0:00:05.5]} 43... Qxf2+ {[%clk 0:00:12.7]} 44.
Ka3 {[%clk 0:00:04.4]} 44... Qc5+ {[%clk 0:00:12.7]} 45. Kb2 {[%clk 0:00:03.7]}
45... e3 {[%clk 0:00:12.9]} 46. e7 {[%clk 0:00:04.6]} 46... Qxe7 {[%clk
0:00:12.6]} 0-1

[Event "Late-Titled-Tuesday-Blitz-June-04-2024"]
[Site "Chess.com"]
[Date "2024.06.04"]
[Round "1"]
[White "Abund"]
[Black "Eloist"]
[Result "1/2-1/2"]
[WhiteElo "2802"]
[BlackElo "2457"]
[TimeControl "180+1"]
[EndTime "14:07:43 PDT"]
[Termination "Game drawn by repetition"]

1. e4 {[%clk 0:03:00.9]} 1... e6 {[%clk 0:02:59.9]} 2. d4 {[%clk 0:03:00.6]}
2... d5 {[%clk 0:03:00.4]} 3. Nd2 {[%clk 0:03:01.1]} 3... c5 {[%clk 0:02:59.6]}
4. Ngf3 {[%clk 0:02:58.7]} 4... cxd4 {[%clk 0:02:59.1]} 5. Nxd4 {[%clk
0:02:57.9]} 5... Nc6 {[%clk 0:02:58.4]} 6. Bb5 {[%clk 0:02:57.9]} 6... Bd7
{[%clk 0:02:58.4]} 7. Nxc6 {[%clk 0:02:58.1]} 7... bxc6 {[%clk 0:02:56.9]} 8.
Bd3 {[%clk 0:02:58.3]} 8... Bd6 {[%clk 0:02:55.2]} 9. Qe2 {[%clk 0:02:58.6]}
9... Qc7 {[%clk 0:02:50.3]} 10. Nf3 {[%clk 0:02:58.5]} 10... Ne7 {[%clk
0:02:42.8]} 11. e5 {[%clk 0:02:53.8]} 11... Bb4+ {[%clk 0:02:36.6]} 12. c3
{[%clk 0:02:50.1]} 12... Ba5 {[%clk 0:02:35.4]} 13. O-O {[%clk 0:02:48.3]} 13...
c5 {[%clk 0:02:35.1]} 14. Bg5 {[%clk 0:02:35.7]} 14... Ng6 {[%clk 0:02:29.7]}
15. h4 {[%clk 0:02:33.8]} 15... h6 {[%clk 0:02:29.7]} 16. Bd2 {[%clk 0:02:14.7]}
16... O-O {[%clk 0:02:22.4]} 17. Rfe1 {[%clk 0:02:03.4]} 17... Rab8 {[%clk
0:02:21.5]} 18. b3 {[%clk 0:01:57.9]} 18... Bb6 {[%clk 0:02:16.1]} 19. c4 {[%clk
0:01:51.6]} 19... Bc6 {[%clk 0:02:10.7]} 20. Rad1 {[%clk 0:01:46.3]} 20... dxc4
{[%clk 0:02:06.2]} 21. Bxc4 {[%clk 0:01:44.8]} 21... Bxf3 {[%clk 0:02:00.3]} 22.
Qxf3 {[%clk 0:01:45.2]} 22... Nxe5 {[%clk 0:01:58]} 23. Qg3 {[%clk 0:01:25.3]}
23... Nxc4 {[%clk 0:01:48.9]} 24. Bf4 {[%clk 0:01:24.3]} 24... e5 {[%clk
0:01:42.1]} 25. Bxh6 {[%clk 0:01:09.5]} 25... f6 {[%clk 0:01:15.9]} 26. bxc4
{[%clk 0:01:09.6]} 26... Rfd8 {[%clk 0:01:10.9]} 27. Rd5 {[%clk 0:01:08.1]}
27... Rxd5 {[%clk 0:01:09.5]} 28. cxd5 {[%clk 0:01:08.6]} 28... c4 {[%clk
0:01:03]} 29. d6 {[%clk 0:01:05.4]} 29... Qd7 {[%clk 0:00:55.5]} 30. Rd1 {[%clk
0:00:42.8]} 30... Bd4 {[%clk 0:00:51.8]} 31. Be3 {[%clk 0:00:40.9]} 31... c3
{[%clk 0:00:37.2]} 32. Bxd4 {[%clk 0:00:17.1]} 32... exd4 {[%clk 0:00:36]} 33.
Kh2 {[%clk 0:00:17.6]} 33... c2 {[%clk 0:00:22.1]} 34. Rc1 {[%clk 0:00:17.8]}
34... Rc8 {[%clk 0:00:15.6]} 35. Qb3+ {[%clk 0:00:08.8]} 35... Kh8 {[%clk
0:00:13.8]} 36. Rxc2 {[%clk 0:00:07.2]} 36... Qxd6+ {[%clk 0:00:14]} 37. g3
{[%clk 0:00:07.2]} 37... Rxc2 {[%clk 0:00:13.3]} 38. Qxc2 {[%clk 0:00:08.1]}
38... d3 {[%clk 0:00:13.6]} 39. Qc8+ {[%clk 0:00:03.5]} 39... Kh7 {[%clk
0:00:13]} 40. Qf5+ {[%clk 0:00:03.9]} 40... Kg8 {[%clk 0:00:12.9]} 41. Qc8+
{[%clk 0:00:03.9]} 41... Kf7 {[%clk 0:00:13.1]} 42. Qb7+ {[%clk 0:00:04.3]}
42... Kg8 {[%clk 0:00:10.5]} 43. Qc8+ {[%clk 0:00:03.4]} 43... Kf7 {[%clk
0:00:10.6]} 44. Qb7+ {[%clk 0:00:03.5]} 44... Kf8 {[%clk 0:00:10.2]} 45. Qc8+
{[%clk 0:00:03.8]} 45... Kf7 {[%clk 0:00:10.2]} 1/2-1/2

[Event "Late-Titled-Tuesday-Blitz-June-04-2024"]
[Site "Chess.com"]
[Date "2024.06.04"]
[Round "1"]
[White "NikolaGry"]
[Black "Nick12772"]
[Result "1-0"]
[WhiteElo "2706"]
[BlackElo "2388"]
[TimeControl "180+1"]
[EndTime "14:07:44 PDT"]
[Termination "NikolaGry won on time"]

1. d3 {[%clk 0:02:59.8]} 1... Nf6 {[%clk 0:02:59.9]} 2. d4 {[%clk 0:03:00.7]}
2... g6 {[%clk 0:03:00.1]} 3. Nf3 {[%clk 0:03:01.2]} 3... Bg7 {[%clk 0:03:00.5]}
4. Bf4 {[%clk 0:02:59.7]} 4... O-O {[%clk 0:03:00.9]} 5. e3 {[%clk 0:02:59.2]}
5... d5 {[%clk 0:03:01.5]} 6. h3 {[%clk 0:02:58.2]} 6... c6 {[%clk 0:03:01.4]}
7. c3 {[%clk 0:02:57.6]} 7... Ne4 {[%clk 0:03:01.6]} 8. Nbd2 {[%clk 0:02:56.3]}
8... Nxd2 {[%clk 0:03:01.6]} 9. Qxd2 {[%clk 0:02:54.2]} 9... Nd7 {[%clk
0:03:01.9]} 10. Be2 {[%clk 0:02:52.9]} 10... Re8 {[%clk 0:03:01.3]} 11. O-O
{[%clk 0:02:46.3]} 11... Nf6 {[%clk 0:02:56.9]} 12. c4 {[%clk 0:02:43.2]} 12...
Ne4 {[%clk 0:02:54.4]} 13. Qc2 {[%clk 0:02:42.1]} 13... Bf5 {[%clk 0:02:39.4]}
14. Bd3 {[%clk 0:02:39.4]} 14... Nd6 {[%clk 0:02:31.1]} 15. Bxf5 {[%clk
0:02:33.3]} 15... Nxf5 {[%clk 0:02:30.4]} 16. Rfd1 {[%clk 0:02:31.4]} 16... e6
{[%clk 0:02:20.8]} 17. Rac1 {[%clk 0:02:29.1]} 17... Nd6 {[%clk 0:02:16.5]} 18.
b3 {[%clk 0:02:27.1]} 18... Ne4 {[%clk 0:02:14.3]} 19. Ne5 {[%clk 0:02:23.4]}
19... Rc8 {[%clk 0:02:02.8]} 20. a4 {[%clk 0:02:17.7]} 20... h5 {[%clk
0:01:53.6]} 21. Bh2 {[%clk 0:02:15.2]} 21... Qa5 {[%clk 0:01:43.6]} 22. Nd3
{[%clk 0:02:10]} 22... Kh7 {[%clk 0:01:21.5]} 23. b4 {[%clk 0:02:05.3]} 23...
Qd8 {[%clk 0:01:21.1]} 24. c5 {[%clk 0:02:01.3]} 24... a6 {[%clk 0:01:19.2]} 25.
Rb1 {[%clk 0:01:51.4]} 25... Ra8 {[%clk 0:01:14.8]} 26. f3 {[%clk 0:01:44.4]}
26... Nf6 {[%clk 0:01:09.4]} 27. b5 {[%clk 0:01:43.4]} 27... axb5 {[%clk
0:01:09.4]} 28. axb5 {[%clk 0:01:43.3]} 28... h4 {[%clk 0:00:52.9]} 29. bxc6
{[%clk 0:01:37.9]} 29... bxc6 {[%clk 0:00:53.8]} 30. Ne5 {[%clk 0:01:33.7]}
30... Nh5 {[%clk 0:00:39.8]} 31. Nxf7 {[%clk 0:01:22.1]} 31... Qf6 {[%clk
0:00:35.7]} 32. Rb7 {[%clk 0:01:12.6]} 32... Re7 {[%clk 0:00:35.8]} 33. Rxe7
{[%clk 0:01:08]} 33... Qxe7 {[%clk 0:00:36.7]} 34. Ne5 {[%clk 0:01:06.7]} 34...
Qg5 {[%clk 0:00:25.6]} 35. f4 {[%clk 0:01:04.2]} 35... Qf6 {[%clk 0:00:14.1]}
36. Nxc6 {[%clk 0:00:59.2]} 36... Ra3 {[%clk 0:00:14.3]} 37. Re1 {[%clk
0:00:51.8]} 37... Ng3 {[%clk 0:00:12.1]} 38. Bxg3 {[%clk 0:00:48.8]} 38... hxg3
{[%clk 0:00:13]} 39. Ne5 {[%clk 0:00:47.2]} 39... Qd8 {[%clk 0:00:06.5]} 40.
Qxg6+ {[%clk 0:00:44.5]} 40... Kg8 {[%clk 0:00:06.1]} 41. Qxe6+ {[%clk
0:00:40.3]} 41... Kh7 {[%clk 0:00:06.3]} 42. Qf5+ {[%clk 0:00:29.2]} 42... Kg8
{[%clk 0:00:05.9]} 43. c6 {[%clk 0:00:27.6]} 43... Bxe5 {[%clk 0:00:03.6]} 44.
fxe5 {[%clk 0:00:24.6]} 44... Qc7 {[%clk 0:00:02.9]} 45. Rf1 {[%clk 0:00:22.9]}
45... Qxc6 {[%clk 0:00:01.1]} 46. Qf8+ {[%clk 0:00:21.6]} 46... Kh7 {[%clk
0:00:01.4]} 47. Rf7+ {[%clk 0:00:20.5]} 47... Kg6 {[%clk 0:00:01.9]} 48. Qg7+
{[%clk 0:00:18]} 1-0

[Event "Late-Titled-Tuesday-Blitz-June-04-2024"]
[Site "Chess.com"]
[Date "2024.06.04"]
[Round "1"]
[White "traviscottofficial"]
[Black "Pachonpower"]
[Result "1-0"]
[WhiteElo "2687"]
[BlackElo "2374"]
[TimeControl "180+1"]
[EndTime "14:07:44 PDT"]
[Termination "traviscottofficial won by checkmate"]

1. Na3 {[%clk 0:02:56.2]} 1... e5 {[%clk 0:02:58.8]} 2. Nc4 {[%clk 0:02:54.5]}
2... Qe7 {[%clk 0:02:54.6]} 3. e4 {[%clk 0:02:52.9]} 3... Nf6 {[%clk 0:02:54.2]}
4. d3 {[%clk 0:02:52.6]} 4... c6 {[%clk 0:02:54.6]} 5. Nf3 {[%clk 0:02:52.4]}
5... d6 {[%clk 0:02:54.9]} 6. Be2 {[%clk 0:02:52.2]} 6... Be6 {[%clk 0:02:54.9]}
7. b3 {[%clk 0:02:51.5]} 7... Nbd7 {[%clk 0:02:55.2]} 8. O-O {[%clk 0:02:51.3]}
8... b5 {[%clk 0:02:55.3]} 9. Na5 {[%clk 0:02:49.8]} 9... Rc8 {[%clk 0:02:54]}
10. a4 {[%clk 0:02:49.7]} 10... b4 {[%clk 0:02:53.8]} 11. Be3 {[%clk 0:02:48.3]}
11... c5 {[%clk 0:02:54]} 12. Nd2 {[%clk 0:02:43.2]} 12... Nb6 {[%clk 0:02:54]}
13. f4 {[%clk 0:02:41.8]} 13... Qc7 {[%clk 0:02:45.6]} 14. f5 {[%clk 0:02:39.1]}
14... Bd7 {[%clk 0:02:45.8]} 15. Nac4 {[%clk 0:02:39.3]} 15... Bc6 {[%clk
0:02:44]} 16. g4 {[%clk 0:02:29.2]} 16... d5 {[%clk 0:02:37.8]} 17. Nxb6 {[%clk
0:02:26.2]} 17... axb6 {[%clk 0:02:38.7]} 18. g5 {[%clk 0:02:26.3]} 18... Nd7
{[%clk 0:02:38.3]} 19. exd5 {[%clk 0:02:18.1]} 19... Bxd5 {[%clk 0:02:39.2]} 20.
Bf3 {[%clk 0:02:17.1]} 20... Qc6 {[%clk 0:02:39.4]} 21. Nc4 {[%clk 0:02:14]}
21... Be7 {[%clk 0:02:36.5]} 22. Bxd5 {[%clk 0:01:56.3]} 22... Qxd5 {[%clk
0:02:37.4]} 23. Qg4 {[%clk 0:01:56.4]} 23... f6 {[%clk 0:02:32.1]} 24. Rae1
{[%clk 0:01:48.7]} 24... fxg5 {[%clk 0:02:27.3]} 25. Bxg5 {[%clk 0:01:46.5]}
25... Bxg5 {[%clk 0:02:24.7]} 26. Qxg5 {[%clk 0:01:46.1]} 26... O-O {[%clk
0:02:24.8]} 27. Re4 {[%clk 0:01:34.8]} 27... Rf6 {[%clk 0:02:22.6]} 28. Ne3
{[%clk 0:01:24.3]} 28... Qf7 {[%clk 0:02:02.4]} 29. Ng4 {[%clk 0:01:23.4]} 29...
Rfc6 {[%clk 0:02:02.9]} 30. f6 {[%clk 0:01:10.4]} 30... Qg6 {[%clk 0:01:58.6]}
31. Qxg6 {[%clk 0:00:59.9]} 31... hxg6 {[%clk 0:01:59.5]} 32. f7+ {[%clk
0:00:54]} 32... Kf8 {[%clk 0:01:59.5]} 33. Nxe5 {[%clk 0:00:54]} 33... Nxe5
{[%clk 0:01:59.5]} 34. Rxe5 {[%clk 0:00:54.9]} 34... Rb8 {[%clk 0:01:33.4]} 35.
Rd5 {[%clk 0:00:46.9]} 35... Rf6 {[%clk 0:01:31.9]} 36. Rxf6 {[%clk 0:00:45.3]}
36... gxf6 {[%clk 0:01:32.8]} 37. Rd7 {[%clk 0:00:45.7]} 37... b5 {[%clk
0:01:31.9]} 38. axb5 {[%clk 0:00:39.6]} 38... Rxb5 {[%clk 0:01:32.8]} 39. Rc7
{[%clk 0:00:38.2]} 39... Ra5 {[%clk 0:01:32.5]} 40. Kg2 {[%clk 0:00:37.9]} 40...
Kg7 {[%clk 0:01:31.4]} 41. Kf3 {[%clk 0:00:36.6]} 41... g5 {[%clk 0:01:16.8]}
42. Ke4 {[%clk 0:00:32.2]} 42... Rb5 {[%clk 0:01:08.2]} 43. Kd5 {[%clk
0:00:18.6]} 43... Ra5 {[%clk 0:01:04.1]} 44. Ke6 {[%clk 0:00:17]} 44... Ra1
{[%clk 0:00:57.7]} 45. f8=Q+ {[%clk 0:00:15.6]} 45... Kxf8 {[%clk 0:00:57.5]}
46. Kxf6 {[%clk 0:00:16.5]} 46... Ra6+ {[%clk 0:00:56.3]} 47. Kxg5 {[%clk
0:00:16.6]} 47... Ra1 {[%clk 0:00:54.2]} 48. Kf6 {[%clk 0:00:16.4]} 48... Rf1+
{[%clk 0:00:54.4]} 49. Ke6 {[%clk 0:00:16.7]} 49... Rh1 {[%clk 0:00:54.2]} 50.
Rc8+ {[%clk 0:00:16.3]} 50... Kg7 {[%clk 0:00:53.8]} 51. Rxc5 {[%clk 0:00:17.2]}
51... Rxh2 {[%clk 0:00:53.8]} 52. Kd5 {[%clk 0:00:17.5]} 52... Kf6 {[%clk
0:00:53]} 53. Rc4 {[%clk 0:00:17.3]} 53... Ke7 {[%clk 0:00:51.6]} 54. Kc5 {[%clk
0:00:17.6]} 54... Kd7 {[%clk 0:00:50.4]} 55. Kxb4 {[%clk 0:00:18.2]} 55... Kd6
{[%clk 0:00:50.6]} 56. Kc3 {[%clk 0:00:18.5]} 56... Kd5 {[%clk 0:00:49.7]} 57.
b4 {[%clk 0:00:19]} 57... Rh1 {[%clk 0:00:49.4]} 58. b5 {[%clk 0:00:18.9]} 58...
Rb1 {[%clk 0:00:49.8]} 59. Rb4 {[%clk 0:00:19.4]} 59... Ra1 {[%clk 0:00:48.4]}
60. b6 {[%clk 0:00:19.8]} 60... Ra8 {[%clk 0:00:48.6]} 61. b7 {[%clk 0:00:20.1]}
61... Rb8 {[%clk 0:00:49.5]} 62. d4 {[%clk 0:00:20.1]} 62... Kc6 {[%clk
0:00:49.4]} 63. Kc4 {[%clk 0:00:20.6]} 63... Kd6 {[%clk 0:00:50]} 64. Rb6+
{[%clk 0:00:19.7]} 64... Kc7 {[%clk 0:00:50.4]} 65. Kc5 {[%clk 0:00:20.3]} 65...
Rxb7 {[%clk 0:00:48.4]} 66. Rxb7+ {[%clk 0:00:20.5]} 66... Kxb7 {[%clk
0:00:49.3]} 67. Kd6 {[%clk 0:00:21.2]} 67... Kc8 {[%clk 0:00:49.5]} 68. d5
{[%clk 0:00:21.8]} 68... Kd8 {[%clk 0:00:49.8]} 69. c4 {[%clk 0:00:22.6]} 69...
Kc8 {[%clk 0:00:50.3]} 70. Ke7 {[%clk 0:00:23]} 70... Kc7 {[%clk 0:00:50.8]} 71.
d6+ {[%clk 0:00:23.6]} 71... Kc6 {[%clk 0:00:51.7]} 72. d7 {[%clk 0:00:24.2]}
72... Kc5 {[%clk 0:00:52.6]} 73. d8=Q {[%clk 0:00:24.8]} 73... Kxc4 {[%clk
0:00:53.5]} 74. Ke6 {[%clk 0:00:25.1]} 74... Kc3 {[%clk 0:00:54.4]} 75. Kd5
{[%clk 0:00:25.4]} 75... Kc2 {[%clk 0:00:55.3]} 76. Kc4 {[%clk 0:00:25.6]} 76...
Kc1 {[%clk 0:00:56.2]} 77. Kb3 {[%clk 0:00:25.7]} 77... Kb1 {[%clk 0:00:56.6]}
78. Qd1# {[%clk 0:00:26.4]} 1-0

[Event "Late-Titled-Tuesday-Blitz-June-04-2024"]
[Site "Chess.com"]
[Date "2024.06.04"]
[Round "1"]
[White "Road2GM3000"]
[Black "grzechu96"]
[Result "0-1"]
[WhiteElo "2444"]
[BlackElo "2797"]
[TimeControl "180+1"]
[EndTime "14:07:45 PDT"]
[Termination "grzechu96 won by resignation"]

1. d4 {[%clk 0:03:00.9]} 1... d5 {[%clk 0:02:55.9]} 2. c4 {[%clk 0:03:00.5]}
2... e6 {[%clk 0:02:55.3]} 3. Nc3 {[%clk 0:03:00.6]} 3... c6 {[%clk 0:02:55.3]}
4. cxd5 {[%clk 0:02:59.7]} 4... exd5 {[%clk 0:02:55.5]} 5. Nf3 {[%clk
0:02:59.2]} 5... Bd6 {[%clk 0:02:50.4]} 6. Bg5 {[%clk 0:02:59.2]} 6... Ne7
{[%clk 0:02:47.5]} 7. e3 {[%clk 0:02:59.1]} 7... Bf5 {[%clk 0:02:47.2]} 8. Bd3
{[%clk 0:02:58.7]} 8... f6 {[%clk 0:02:39.1]} 9. Bh4 {[%clk 0:02:58.6]} 9... Qd7
{[%clk 0:02:22.3]} 10. Bg3 {[%clk 0:02:46.4]} 10... Bxd3 {[%clk 0:02:19.4]} 11.
Qxd3 {[%clk 0:02:46.5]} 11... Nf5 {[%clk 0:02:19.7]} 12. Bxd6 {[%clk 0:02:42.6]}
12... Nxd6 {[%clk 0:02:20.6]} 13. O-O-O {[%clk 0:02:40.3]} 13... O-O {[%clk
0:02:15]} 14. h3 {[%clk 0:02:38.3]} 14... Na6 {[%clk 0:02:13.8]} 15. Kb1 {[%clk
0:02:34.3]} 15... Rae8 {[%clk 0:02:04.1]} 16. g4 {[%clk 0:02:33.1]} 16... Ne4
{[%clk 0:02:04.2]} 17. Qc2 {[%clk 0:02:20.2]} 17... Nc7 {[%clk 0:02:02.3]} 18.
Nxe4 {[%clk 0:02:20.4]} 18... dxe4 {[%clk 0:01:59.1]} 19. Ng1 {[%clk 0:02:15.9]}
19... f5 {[%clk 0:01:56.2]} 20. Ne2 {[%clk 0:02:09.3]} 20... Nd5 {[%clk
0:01:54.3]} 21. Nc3 {[%clk 0:02:04.9]} 21... fxg4 {[%clk 0:01:29.7]} 22. Nxd5
{[%clk 0:02:04.3]} 22... cxd5 {[%clk 0:01:28.6]} 23. hxg4 {[%clk 0:02:02.4]}
23... Qxg4 {[%clk 0:01:28.8]} 24. Rdg1 {[%clk 0:01:58.7]} 24... Qd7 {[%clk
0:01:22]} 25. Rh5 {[%clk 0:01:49.5]} 25... Rf5 {[%clk 0:01:00.9]} 26. Rxf5
{[%clk 0:01:18.4]} 26... Qxf5 {[%clk 0:01:01.8]} 27. Qc7 {[%clk 0:00:54.3]}
27... Qf7 {[%clk 0:01:01.4]} 28. Qd6 {[%clk 0:00:54.8]} 28... Kh8 {[%clk
0:00:37.1]} 29. Rg2 {[%clk 0:00:36.3]} 29... h6 {[%clk 0:00:36.8]} 30. a3 {[%clk
0:00:34.4]} 30... Kh7 {[%clk 0:00:27.3]} 31. Ka2 {[%clk 0:00:26.4]} 31... Qe6
{[%clk 0:00:23.7]} 32. Qc5 {[%clk 0:00:22.3]} 32... a6 {[%clk 0:00:20.6]} 33.
Qc7 {[%clk 0:00:22.2]} 33... Re7 {[%clk 0:00:20.2]} 34. Qd8 {[%clk 0:00:22.4]}
34... Rf7 {[%clk 0:00:20.1]} 35. Qh4 {[%clk 0:00:20.5]} 35... Qf6 {[%clk
0:00:19.2]} 36. Qg3 {[%clk 0:00:20.7]} 36... Qf5 {[%clk 0:00:18.2]} 37. Qd6
{[%clk 0:00:17.2]} 37... Qd7 {[%clk 0:00:12.2]} 38. Qg6+ {[%clk 0:00:17.1]}
38... Kh8 {[%clk 0:00:12.5]} 39. Rh2 {[%clk 0:00:15.7]} 39... a5 {[%clk
0:00:12]} 40. Rh5 {[%clk 0:00:15.6]} 40... Rxf2 {[%clk 0:00:10.5]} 41. Qg3
{[%clk 0:00:06.8]} 41... Rf5 {[%clk 0:00:08.7]} 42. Rxf5 {[%clk 0:00:04]} 42...
Qxf5 {[%clk 0:00:09.6]} 43. Qb8+ {[%clk 0:00:04.5]} 43... Kh7 {[%clk 0:00:10.2]}
44. Qxb7 {[%clk 0:00:05.4]} 44... h5 {[%clk 0:00:10.2]} 45. b4 {[%clk 0:00:06]}
45... axb4 {[%clk 0:00:08.5]} 46. axb4 {[%clk 0:00:06.9]} 46... h4 {[%clk
0:00:08.6]} 47. b5 {[%clk 0:00:07.2]} 47... h3 {[%clk 0:00:07.9]} 48. Qb8 {[%clk
0:00:06.6]} 48... Qf2+ {[%clk 0:00:08.1]} 49. Ka3 {[%clk 0:00:07.3]} 49... h2
{[%clk 0:00:08.3]} 0-1